bitfinex/quotes_SOLUSD_20250424
["timestamp","ask_amount","ask_price","bid_price","bid_amount"]
[1745514351208,26.69306115,151.61,151.57,6.59761166]
[1745514352339,26.69306115,151.6,151.57,6.59761166]
[1745514353512,26.69306115,151.61,151.57,6.59761166]
[1745514355923,26.69306115,151.6,151.57,6.59761166]
[1745514356111,26.69306115,151.61,151.57,33.29067281]
[1745514356493,26.69306115,151.62,151.57,33.29067281]
[1745514357413,26.69306115,151.61,151.57,33.29067281]
[1745514359433,16.70533424,151.61,151.57,16.70533424]
[1745514360033,16.70533424,151.6,151.56,6.59804697]
[1745514360235,16.70533424,151.59,151.56,6.59804697]
[1745514361238,13.42,151.61,151.56,6.59804697]
[1745514361446,16.70533424,151.59,151.56,6.59804697]
[1745514361739,30.12533424,151.61,151.57,16.70533424]
[1745514361932,13.42,151.61,151.58,16.70533424]
[1745514362941,16.70533424,151.6,151.56,23.30338121]
[1745514363157,16.70533424,151.57,151.54,6.59891777]
[1745514363448,16.70533424,151.55,151.52,6.5997888]
[1745514363939,6.648,151.58,151.52,6.5997888]
[1745514363940,16.70533424,151.56,151.52,6.5997888]
[1745514364131,16.70533424,151.56,151.52,23.30512304]
[1745514364329,16.70533424,151.55,151.51,32.6002219]
[1745514364920,16.70533424,151.55,151.51,49.30555614]
[1745514365424,13.42,151.56,151.51,49.30555614]
[1745514365425,30.12533424,151.56,151.52,16.70533424]
[1745514366234,30.12533424,151.56,151.51,49.30555614]
[1745514366537,30.12533424,151.56,151.51,23.30555614]
[1745514367841,30.12533424,151.56,151.52,16.70533424]
[1745514369026,13.42,151.56,151.54,16.70533424]
[1745514369425,13.42,151.56,151.55,16.70533424]
[1745514369641,82.7,151.57,151.55,16.70533424]
[1745514369944,82.7,151.57,151.54,16.70533424]
[1745514370164,82.7,151.57,151.52,6.59938079]
[1745514370165,16.70533424,151.56,151.52,6.59938079]
[1745514370327,16.70533424,151.55,151.52,6.59938079]
[1745514371043,16.70533424,151.55,151.51,23.30555864]
[1745514371423,16.70533424,151.56,151.51,23.30555864]
[1745514371623,16.70533424,151.56,151.52,16.70533424]
[1745514371921,99.40533424,151.57,151.52,16.70533424]
[1745514372747,99.40533424,151.57,151.53,6.59935326]
[1745514373049,16.70533424,151.56,151.52,23.30494918]
[1745514373241,16.70533424,151.55,151.51,23.30550771]
[1745514373714,82.7,151.57,151.51,23.30550771]
[1745514373916,16.70533424,151.56,151.51,23.30550771]
[1745514374332,16.70533424,151.56,151.52,16.70533424]
[1745514374852,16.70533424,151.56,151.52,23.30480521]
[1745514375248,82.7,151.57,151.53,16.70533424]
[1745514375755,99.40533424,151.57,151.52,23.30480521]
[1745514375946,99.40533424,151.57,151.49,61.1514259]
[1745514375947,16.70533424,151.55,151.51,6.60005131]
[1745514376143,16.70533424,151.55,151.51,23.30538555]
[1745514380349,16.70533424,151.56,151.51,23.30538555]
[1745514381762,23.3034856,151.56,151.51,23.30538555]
[1745514382061,16.70533424,151.55,151.51,6.60005131]
[1745514382241,16.70533424,151.54,151.5,23.30585064]
[1745514382559,16.70533424,151.51,151.45,6.60283922]
[1745514382766,16.70533424,151.46,151.4,6.60501981]
[1745514382934,16.70533424,151.45,151.41,16.70533424]
[1745514383369,96.12,151.48,151.4,6.60501981]
[1745514383547,16.70533424,151.44,151.4,6.60501981]
[1745514384157,16.70533424,151.42,151.39,0.063]
[1745514384759,16.70533424,151.42,151.39,6.66839928]
[1745514385175,30.12533424,151.43,151.39,6.66839928]
[1745514385878,16.70533424,151.42,151.39,6.66839928]
[1745514386090,16.70533424,151.41,151.39,0.063]
[1745514386258,16.70533424,151.42,151.39,0.063]
[1745514386452,13.42,151.43,151.39,0.063]
[1745514386453,16.70533424,151.41,151.39,0.063]
[1745514386657,16.70533424,151.4,151.39,0.063]
[1745514387983,23.31035405,151.4,151.39,0.063]
[1745514388785,16.70533424,151.4,151.39,0.063]
[1745514389283,99.40533424,151.4,151.39,0.063]
[1745514391588,106.01035405,151.4,151.39,0.063]
[1745514391761,0.14216157,151.39,151.31,6.60891291]
[1745514391963,16.70533424,151.34,151.31,6.60891291]
[1745514392161,96.12,151.38,151.31,6.60891291]
[1745514392162,16.70533424,151.35,151.31,6.60891291]
[1745514392472,16.70533424,151.35,151.31,23.31424715]
[1745514393983,96.12,151.38,151.33,16.70533424]
[1745514394169,112.82533424,151.38,151.34,16.70533424]
[1745514394481,112.82533424,151.38,151.33,16.70533424]
[1745514396486,112.82533424,151.38,151.34,6.60763843]
[1745514397087,16.70533424,151.36,151.3,0.063]
[1745514397380,16.70533424,151.35,151.31,16.70533424]
[1745514397974,13.44,151.37,151.32,16.70533424]
[1745514398190,13.44,151.37,151.34,16.70533424]
[1745514398484,13.44,151.37,151.35,6.60720185]
[1745514399074,82.7,151.4,151.36,16.70533424]
[1745514399270,82.7,151.4,151.35,6.60720185]
[1745514399471,99.40533424,151.4,151.35,23.31253609]
[1745514399673,16.70533424,151.38,151.34,23.31290818]
[1745514399869,16.70533424,151.36,151.33,6.60805426]
[1745514400073,16.70533424,151.36,151.32,6.6084669]
[1745514400304,16.70533424,151.37,151.32,23.31380114]
[1745514401081,6.60593659,151.38,151.32,23.31380114]
[1745514401288,16.70533424,151.36,151.32,23.31380114]
[1745514401792,16.70533424,151.37,151.32,23.31380114]
[1745514402088,16.70533424,151.36,151.32,23.31380114]
[1745514402291,16.70533424,151.36,151.32,6.6084669]
[1745514402590,30.14533424,151.36,151.32,6.6084669]
[1745514403096,13.44,151.36,151.32,6.6084669]
[1745514403276,30.14533424,151.36,151.32,6.6084669]
[1745514405384,16.70533424,151.33,151.3,0.063]
[1745514405601,16.70533424,151.31,151.3,0.063]
[1745514406297,30.12533424,151.31,151.3,0.063]
[1745514406692,13.42,151.31,151.3,0.063]
[1745514407283,30.12533424,151.31,151.3,0.063]
[1745514408303,36.73428275,151.31,151.3,0.063]
[1745514408885,36.87644432,151.31,151.3,0.063]
[1745514409394,26.0,151.27,151.24,0.063]
[1745514409589,16.70533424,151.25,151.24,0.063]
[1745514410711,23.31690448,151.25,151.24,0.063]
[1745514411616,16.70533424,151.25,151.24,0.063]
[1745514412807,30.14533424,151.26,151.24,0.063]
[1745514413007,13.44,151.26,151.24,0.063]
[1745514413319,30.14533424,151.26,151.24,0.063]
[1745514414012,13.44,151.26,151.24,0.063]
[1745514414185,26.0,151.29,151.24,0.063]
[1745514414186,30.14533424,151.29,151.25,16.70533424]
[1745514414819,1.6193,151.33,151.28,16.70533424]
[1745514414986,222.82533424,151.34,151.3,16.70533424]
[1745514415189,16.70533424,151.31,151.25,6.61150006]
[1745514415387,16.70533424,151.27,151.24,0.063]
[1745514415782,16.70533424,151.26,151.24,0.063]
[1745514415987,16.70533424,151.25,151.24,0.063]
[1745514418083,82.7,151.27,151.24,0.063]
[1745514418306,99.40533424,151.27,151.24,0.063]
[1745514418585,16.70533424,151.26,151.24,0.063]
[1745514419705,16.70533424,151.25,151.24,0.063]
[1745514420788,42.10871491,151.25,151.24,0.063]
[1745514420988,68.10871491,151.25,151.24,0.063]
[1745514421406,74.55351491,151.25,151.24,0.063]
[1745514422430,55.90386605,151.25,151.24,0.063]
[1745514424316,55.76170448,151.25,151.24,0.063]
[1745514424522,55.90386605,151.25,151.24,0.063]
[1745514424904,49.15013424,151.25,151.24,0.063]
[1745514425422,6.3779,151.29,151.24,0.063]
[1745514425628,30.14533424,151.28,151.24,16.76833424]
[1745514425796,13.44,151.28,151.26,16.70533424]
[1745514426305,13.44,151.28,151.25,23.316732]
[1745514426619,13.44,151.28,151.26,16.70533424]
[1745514426797,16.70533424,151.3,151.26,16.70533424]
[1745514426994,13.44,151.31,151.25,23.316732]
[1745514427195,13.44,151.31,151.28,16.70533424]
[1745514427708,13.44,151.31,151.28,23.31545171]
[1745514428599,206.12,151.34,151.3,16.70533424]
[1745514428816,7.5937,151.38,151.33,16.70533424]
[1745514428817,6.0545,151.38,151.33,16.70533424]
[1745514429124,16.70533424,151.37,151.33,16.70533424]
[1745514429324,26.81568053,151.36,151.3,1.5064]
[1745514429523,19.4945,151.38,151.32,26.81568053]
[1745514429699,26.81568053,151.37,151.33,26.81568053]
[1745514430205,19.4945,151.38,151.33,26.81568053]
[1745514430530,46.31018053,151.38,151.33,26.81568053]
[1745514430825,13.44,151.38,151.35,26.81568053]
[1745514431629,13.44,151.38,151.36,26.81568053]
[1745514432306,13.44,151.38,151.35,33.42246268]
[1745514432500,40.25568053,151.38,151.33,33.42336718]
[1745514432702,26.81568053,151.35,151.31,26.81568053]
[1745514432899,26.81568053,151.35,151.3,28.32208053]
[1745514433202,26.81568053,151.36,151.31,26.81568053]
[1745514434247,26.81568053,151.36,151.31,33.42447869]
[1745514434816,26.81568053,151.35,151.31,6.60879816]
[1745514435447,26.81568053,151.36,151.31,33.42447869]
[1745514435743,109.51568053,151.37,151.32,26.81568053]
[1745514436113,26.81568053,151.36,151.31,33.42447869]
[1745514436318,33.42273908,151.36,151.31,26.81568053]
[1745514436627,26.81568053,151.35,151.31,33.42456065]
[1745514437143,26.81568053,151.33,151.28,33.42579297]
[1745514437648,82.7,151.34,151.3,26.81568053]
[1745514438222,109.51568053,151.34,151.3,26.81568053]
[1745514438423,82.7,151.34,151.31,26.81568053]
[1745514438637,82.7,151.34,151.32,26.81568053]
[1745514438841,26.81568053,151.36,151.32,26.81568053]
[1745514440363,82.7,151.37,151.34,6.60763843]
[1745514440650,40.25568053,151.38,151.34,33.42331896]
[1745514440848,40.25568053,151.38,151.34,6.60763843]
[1745514441457,26.81568053,151.37,151.33,26.81568053]
[1745514441860,26.81568053,151.36,151.32,26.81568053]
[1745514442962,26.81568053,151.36,151.31,26.81568053]
[1745514443170,26.81568053,151.32,151.28,26.81568053]
[1745514443347,26.81568053,151.32,151.27,33.42637663]
[1745514443551,26.81568053,151.31,151.27,6.6106961]
[1745514443865,26.81568053,151.32,151.27,33.42637663]
[1745514444667,122.95568053,151.33,151.28,26.81568053]
[1745514444848,96.14,151.33,151.29,26.81568053]
[1745514445056,122.95568053,151.33,151.29,33.42543946]
[1745514445965,122.95568053,151.33,151.29,6.60975893]
[1745514446264,26.81568053,151.32,151.27,26.81568053]
[1745514446561,26.81568053,151.29,151.24,52.87868053]
[1745514447134,26.81568053,151.29,151.25,6.61143455]
[1745514448169,26.81568053,151.3,151.25,33.42711508]
[1745514448641,26.81568053,151.32,151.27,26.81568053]
[1745514449036,26.81568053,151.32,151.28,33.42593965]
[1745514449555,16.76966493,151.32,151.28,23.37992405]
[1745514449753,16.76966493,151.32,151.28,6.61025912]
[1745514450150,112.90966493,151.33,151.28,23.37992405]
[1745514451642,16.76966493,151.32,151.28,23.37992405]
[1745514451839,16.76966493,151.32,151.28,6.61025912]
[1745514452147,96.14,151.33,151.29,16.76966493]
[1745514452362,112.90966493,151.33,151.29,16.76966493]
[1745514452558,112.90966493,151.33,151.28,23.37992405]
[1745514452751,119.51777621,151.33,151.28,23.37992405]
[1745514452957,16.76966493,151.32,151.28,23.37992405]
[1745514453344,16.76966493,151.31,151.26,6.61113314]
[1745514453671,16.76966493,151.28,151.24,0.063]
[1745514453879,16.76966493,151.27,151.24,0.063]
[1745514454057,16.76966493,151.26,151.24,0.063]
[1745514457672,16.76966493,151.25,151.24,0.063]
[1745514458375,16.76966493,151.26,151.24,0.063]
[1745514458555,16.76966493,151.25,151.24,0.063]
[1745514459374,16.76966493,151.26,151.24,0.063]
[1745514459760,16.76966493,151.25,151.24,0.063]
[1745514461072,99.46966493,151.27,151.24,0.063]
[1745514461477,16.76966493,151.25,151.24,0.063]
[1745514461684,23.38123517,151.25,151.24,0.063]
[1745514461851,55.72359674,151.25,151.24,0.063]
[1745514462183,57.38239674,151.25,151.24,0.063]
[1745514463356,76.0320456,151.25,151.24,0.063]
[1745514463570,76.0320456,151.25,151.24,1e-08]
[1745514463769,44.64964886,151.24,151.23,0.063]
[1745514463946,61.41931379,151.24,151.23,0.063]
[1745514464989,68.03132119,151.24,151.23,0.063]
[1745514465952,49.5238339,151.24,151.23,0.063]
[1745514467965,49.38167233,151.24,151.23,0.063]
[1745514468165,49.5238339,151.24,151.23,0.063]
[1745514469181,68.17348276,151.24,151.23,0.063]
[1745514470683,32.6120074,151.24,151.23,0.063]
[1745514470900,49.38167233,151.24,151.23,0.063]
[1745514473177,62.82167233,151.24,151.23,0.063]
[1745514473462,81.61348276,151.24,151.23,0.063]
[1745514474893,62.9638339,151.24,151.23,0.063]
[1745514476677,13.44,151.24,151.23,0.063]
[1745514476984,36.82167233,151.24,151.23,0.063]
[1745514478091,13.44,151.24,151.23,0.063]
[1745514480082,82.7,151.25,151.23,0.063]
[1745514480518,16.76966493,151.24,151.23,0.063]
[1745514484926,23.38167233,151.24,151.23,0.063]
[1745514486321,42.17348276,151.24,151.23,0.063]
[1745514486894,23.38167233,151.24,151.23,0.063]
[1745514487306,6.61182022,151.25,151.23,0.063]
[1745514487803,56.109873,151.27,151.23,0.063]
[1745514487804,89.31133591,151.26,151.23,0.063]
[1745514488002,106.08100084,151.26,151.23,0.063]
[1745514488197,16.76966493,151.25,151.23,0.063]
[1745514488613,16.76966493,151.24,151.23,0.063]
[1745514489398,42.9118265,151.24,151.23,0.063]
[1745514490025,49.5238339,151.24,151.23,0.063]
[1745514490207,68.17348276,151.24,151.23,0.063]
[1745514495727,49.5238339,151.24,151.23,0.063]
[1745514495924,49.38167233,151.24,151.23,0.063]
[1745514496429,23.38167233,151.24,151.23,0.063]
[1745514496624,13.44,151.27,151.23,0.063]
[1745514496625,16.76966493,151.25,151.23,0.063]
[1745514496825,36.82053347,151.27,151.23,0.063]
[1745514497329,13.44,151.27,151.23,16.83266493]
[1745514497642,112.90966493,151.27,151.23,16.83266493]
[1745514498417,119.5203708,151.27,151.23,0.063]
[1745514498924,16.76966493,151.24,151.23,0.063]
[1745514499328,35.56147536,151.24,151.23,0.063]
[1745514500535,42.17348276,151.24,151.23,0.063]
[1745514503033,68.17348276,151.24,151.23,0.063]
[1745514512029,42.17348276,151.24,151.23,1e-08]
[1745514512234,0.14216157,151.19,151.18,0.063]
[1745514512430,49.00147536,151.19,151.18,0.063]
[1745514512751,44.64964886,151.18,151.17,0.063]
[1745514512970,61.41931379,151.18,151.17,0.063]
[1745514514241,68.03394535,151.18,151.17,0.063]
[1745514514544,68.17610692,151.18,151.17,0.063]
[1745514517047,68.17610692,151.18,151.15,0.063]
[1745514517048,18.79181043,151.16,151.15,0.063]
[1745514517244,0.14216157,151.15,151.13,0.063]
[1745514517548,61.56147536,151.15,151.13,0.063]
[1745514519260,49.38560935,151.15,151.13,0.063]
[1745514519442,42.76966493,151.15,151.13,0.063]
[1745514520331,49.38560935,151.15,151.13,0.063]
[1745514520657,16.76966493,151.15,151.13,0.063]
[1745514520838,23.38560935,151.15,151.13,0.063]
[1745514521751,42.17741978,151.15,151.13,0.063]
[1745514522349,44.79181043,151.14,151.1,0.063]
[1745514522532,53.73831138,151.13,151.1,0.063]
[1745514523452,55.61829531,151.13,151.1,0.063]
[1745514523651,72.38796024,151.13,151.1,0.063]
[1745514524046,55.61829531,151.13,151.1,0.063]
[1745514525446,72.38796024,151.13,151.1,0.063]
[1745514525646,81.61829531,151.13,151.1,0.063]
[1745514526348,98.38796024,151.13,151.1,0.063]
[1745514526674,81.61829531,151.13,151.1,0.063]
[1745514527549,98.38796024,151.13,151.1,0.063]
[1745514528168,61.41931379,151.11,151.1,0.063]
[1745514528637,68.0370095,151.11,151.1,0.063]
[1745514529479,42.0370095,151.11,151.1,0.063]
[1745514529655,6.61769571,151.11,151.1,0.063]
[1745514529842,23.38736064,151.11,151.1,0.063]
[1745514530042,42.0370095,151.11,151.1,0.063]
[1745514530244,42.17917107,151.11,151.1,0.063]
[1745514531559,0.14216157,151.06,151.01,0.063]
[1745514531779,16.76966493,151.02,151.01,0.063]
[1745514534292,16.76966493,151.03,151.01,0.063]
[1745514534457,16.76966493,151.02,151.01,0.063]
[1745514536388,23.39130444,151.02,151.01,0.063]
[1745514536689,42.18311487,151.02,151.01,0.063]
[1745514539074,35.56147536,151.02,151.01,0.063]
[1745514539274,16.76966493,151.02,151.01,0.063]
[1745514539795,35.56147536,151.02,151.01,0.063]
[1745514539975,42.18311487,151.02,151.01,0.063]
[1745514540893,18.64964886,150.98,150.96,0.063]
[1745514541079,13.44,150.97,150.96,0.063]
[1745514541594,96.14,150.97,150.96,0.063]
[1745514542174,75.00147536,150.97,150.96,0.063]
[1745514542377,98.39497283,150.97,150.96,0.063]
[1745514542575,98.39497283,150.97,150.94,0.063]
[1745514542576,44.79181043,150.95,150.94,0.063]
[1745514542782,18.79181043,150.94,150.88,1.5394]
[1745514543001,16.76966493,150.89,150.88,1.5394]
[1745514543584,16.76966493,150.89,150.88,0.5394]
[1745514543970,16.76966493,150.89,150.86,7.3484499]
[1745514544172,16.76966493,150.87,150.86,0.9245499]
[1745514544773,23.3978879,150.87,150.86,0.9245499]
[1745514545173,42.18969833,150.87,150.86,0.9245499]
[1745514546198,42.18969833,150.87,150.85,0.063]
[1745514546199,18.79181043,150.86,150.81,0.063]
[1745514546407,23.40008529,150.82,150.81,0.063]
[1745514546693,118.11931379,150.82,150.81,0.063]
[1745514547303,118.11931379,150.82,150.69,6.5049]
[1745514547304,26.0,150.78,150.69,6.5049]
[1745514547475,16.76966493,150.75,150.7,16.76966493]
[1745514547891,13.46,150.77,150.71,16.76966493]
[1745514548202,16.76966493,150.75,150.7,16.76966493]
[1745514548706,20.09290977,150.77,150.69,13.14097667]
[1745514548707,16.76966493,150.74,150.69,23.27456493]
[1745514548877,16.76966493,150.74,150.69,13.14084401]
[1745514549082,16.76966493,150.74,150.69,29.91050894]
[1745514550011,16.76966493,150.75,150.7,16.76966493]
[1745514551099,13.46,150.77,150.74,16.76966493]
[1745514552303,96.16,150.8,150.76,16.76966493]
[1745514552485,13.46,150.81,150.79,16.76966493]
[1745514552689,13.46,150.81,150.75,1.621]
[1745514552690,112.92966493,150.82,150.78,16.76966493]
[1745514552895,112.92966493,150.82,150.75,1.621]
[1745514552896,16.76966493,150.8,150.76,16.76966493]
[1745514553091,16.76966493,150.79,150.75,1.621]
[1745514553291,16.76966493,150.77,150.73,6.63428081]
[1745514553519,30.22966493,150.77,150.73,23.40394574]
[1745514554011,13.46,150.77,150.75,6.63349917]
[1745514554213,13.46,150.77,150.75,23.4031641]
[1745514554933,13.46,150.77,150.76,16.76966493]
[1745514555291,13.46,150.77,150.74,16.76966493]
[1745514555815,13.46,150.77,150.72,6.63481953]
[1745514556002,13.46,150.77,150.75,16.76966493]
[1745514556207,13.46,150.77,150.73,6.63437935]
[1745514556413,30.22966493,150.77,150.73,6.63437935]
[1745514556724,16.76966493,150.76,150.72,6.63470156]
[1745514556926,16.76966493,150.75,150.71,51.04403489]
[1745514557105,16.76966493,150.75,150.71,34.27436996]
[1745514557430,16.76966493,150.75,150.71,51.04403489]
[1745514557604,16.76966493,150.75,150.71,34.27436996]
[1745514557804,16.76966493,150.76,150.71,51.04403489]
[1745514558326,16.76966493,150.76,150.71,34.27436996]
[1745514558528,16.76966493,150.76,150.71,51.04403489]
[1745514559031,16.76966493,150.75,150.71,51.04403489]
[1745514559400,20.09275544,150.77,150.69,26.0]
[1745514559401,16.76966493,150.74,150.69,26.0]
[1745514559601,16.76966493,150.74,150.69,42.76966493]
[1745514560420,16.76966493,150.72,150.68,0.063]
[1745514560626,13.46,150.71,150.68,0.063]
[1745514561604,30.22966493,150.71,150.68,0.063]
[1745514562036,16.76966493,150.7,150.68,0.063]
[1745514562814,16.76966493,150.69,150.68,0.063]
[1745514563015,16.76966493,150.7,150.68,0.063]
[1745514563331,13.46,150.76,150.69,16.76966493]
[1745514563536,13.46,150.76,150.72,16.76966493]
[1745514564631,30.22966493,150.76,150.72,6.63439417]
[1745514564931,13.46,150.76,150.7,6.63526724]
[1745514565132,13.46,150.76,150.74,16.76966493]
[1745514565335,13.46,150.76,150.73,27.0285729]
[1745514565709,13.46,150.76,150.72,27.0285729]
[1745514566209,40.4885729,150.76,150.71,27.0285729]
[1745514566406,27.0285729,150.75,150.71,27.0285729]
[1745514566925,27.0285729,150.73,150.68,0.063]
[1745514567132,27.0285729,150.72,150.68,0.063]
[1745514567333,40.4885729,150.71,150.68,0.063]
[1745514567914,13.46,150.71,150.68,0.063]
[1745514568123,40.4885729,150.71,150.68,0.063]
[1745514570010,13.46,150.71,150.68,0.063]
[1745514571629,13.46,150.71,150.68,27.0915729]
[1745514571831,13.46,150.71,150.69,27.0285729]
[1745514572133,13.46,150.71,150.68,27.0915729]
[1745514572631,13.46,150.71,150.68,6.69944781]
[1745514573029,40.4885729,150.71,150.68,0.063]
[1745514574229,27.0285729,150.7,150.68,0.063]
[1745514574443,27.0285729,150.69,150.68,0.063]
[1745514575535,27.0285729,150.7,150.68,0.063]
[1745514575953,47.12401493,150.71,150.68,0.063]
[1745514576437,40.4885729,150.71,150.68,0.063]
[1745514576624,13.46,150.71,150.68,27.0915729]
[1745514576832,13.46,150.71,150.69,27.0285729]
[1745514577637,13.46,150.75,150.7,54.5529729]
[1745514577841,289.58,150.78,150.74,27.0285729]
[1745514578048,303.04,150.78,150.76,27.0285729]
[1745514578228,220.34,150.78,150.77,27.0285729]
[1745514578625,220.34,150.78,150.76,27.0285729]
[1745514578829,220.34,150.78,150.75,27.0285729]
[1745514579214,27.0285729,150.77,150.73,27.0285729]
[1745514579416,247.3685729,150.78,150.74,27.0285729]
[1745514579617,247.3685729,150.78,150.75,27.0285729]
[1745514579618,220.34,150.78,150.75,27.0285729]
[1745514579918,220.34,150.78,150.77,27.0285729]
[1745514580145,13.46,150.78,150.77,27.0285729]
[1745514580526,13.46,150.78,150.76,27.0285729]
[1745514580722,13.46,150.78,150.75,27.0285729]
[1745514581146,40.4885729,150.78,150.74,27.0285729]
[1745514581346,27.0285729,150.77,150.71,6.63516327]
[1745514581528,27.0285729,150.77,150.7,1.5244]
[1745514581529,27.0285729,150.75,150.7,27.0285729]
[1745514581735,27.0285729,150.74,150.69,27.0285729]
[1745514581943,40.4885729,150.73,150.69,27.0285729]
[1745514582141,27.0285729,150.72,150.68,0.063]
[1745514582449,27.0285729,150.72,150.68,27.0915729]
[1745514582745,47.12315376,150.73,150.68,27.0915729]
[1745514583626,47.12315376,150.73,150.69,27.0285729]
[1745514583627,40.4885729,150.73,150.69,27.0285729]
[1745514583834,13.46,150.73,150.71,27.0285729]
[1745514584439,13.46,150.73,150.69,27.0285729]
[1745514584838,40.4885729,150.73,150.68,6.69956313]
[1745514585047,27.0285729,150.72,150.68,0.063]
[1745514585366,109.7285729,150.72,150.68,0.063]
[1745514585666,109.7285729,150.72,150.68,27.0915729]
[1745514586461,27.0285729,150.71,150.68,0.063]
[1745514587267,33.6639282,150.71,150.68,0.063]
[1745514587644,27.0285729,150.71,150.68,0.063]
[1745514588966,89.3350059,150.72,150.68,27.0915729]
[1745514588967,116.36341442,150.72,150.68,27.0915729]
[1745514589364,27.0285729,150.71,150.68,0.063]
[1745514590362,27.0285729,150.7,150.68,0.063]
[1745514590576,27.0285729,150.71,150.68,0.063]
[1745514590751,82.7,150.72,150.68,27.0915729]
[1745514590952,82.7,150.72,150.69,27.0285729]
[1745514591460,82.7,150.72,150.68,33.7281178]
[1745514591642,82.7,150.72,150.68,27.0915729]
[1745514592046,89.33482166,150.72,150.68,0.063]
[1745514592248,89.33482166,150.72,150.68,27.0915729]
[1745514592684,82.7,150.72,150.68,27.0915729]
[1745514593072,89.33485301,150.72,150.68,27.0915729]
[1745514593384,27.0285729,150.71,150.68,0.063]
[1745514593552,116.36342591,150.72,150.68,0.063]
[1745514593883,89.33485301,150.72,150.68,27.0915729]
[1745514594051,116.36342591,150.72,150.68,27.0915729]
[1745514594673,116.36342591,150.72,150.68,0.063]
[1745514594865,116.36342591,150.72,150.68,27.0915729]
[1745514595273,89.33485301,150.72,150.68,0.063]
[1745514595479,106.2396559,150.72,150.68,16.96780289]
[1745514595662,89.33485301,150.72,150.68,16.96780289]
[1745514595849,89.33485301,150.72,150.69,16.90480289]
[1745514596049,82.7,150.72,150.69,16.90480289]
[1745514596266,13.46,150.71,150.68,0.063]
[1745514596572,13.46,150.71,150.7,16.90480289]
[1745514597558,13.46,150.71,150.7,23.54050295]
[1745514598349,13.46,150.71,150.68,0.063]
[1745514598572,13.46,150.71,150.7,16.90480289]
[1745514599487,13.46,150.71,150.68,6.69942462]
[1745514599669,13.46,150.71,150.69,16.90480289]
[1745514599869,13.46,150.71,150.68,16.96780289]
[1745514601082,37.00014537,150.71,150.68,0.063]
[1745514601265,13.46,150.71,150.68,0.063]
[1745514601459,20.09530302,150.71,150.68,0.063]
[1745514601666,13.46,150.71,150.68,0.063]
[1745514601899,13.46,150.71,150.69,16.90480289]
[1745514602184,13.46,150.73,150.68,0.063]
[1745514602385,30.36480289,150.73,150.69,16.90480289]
[1745514603110,13.46,150.73,150.69,16.90480289]
[1745514603296,13.46,150.73,150.7,16.90480289]
[1745514603457,13.46,150.73,150.69,23.54090187]
[1745514604783,20.09439959,150.73,150.69,16.90480289]
[1745514604989,16.90480289,150.72,150.68,0.063]
[1745514605159,16.90480289,150.71,150.68,0.063]
[1745514607190,23.54006833,150.71,150.68,0.063]
[1745514607390,6.63526544,150.71,150.68,0.063]
[1745514608972,23.54006833,150.71,150.68,0.063]
[1745514609163,6.63526544,150.71,150.68,0.063]
[1745514609577,106.23977865,150.72,150.68,0.063]
[1745514610000,16.90480289,150.71,150.68,0.063]
[1745514610191,16.90480289,150.7,150.68,0.063]
[1745514610705,99.60480289,150.71,150.68,0.063]
[1745514610882,82.7,150.71,150.68,0.063]
[1745514611425,99.60480289,150.71,150.68,0.063]
[1745514611709,106.2401805,150.71,150.68,0.063]
[1745514611891,16.90480289,150.7,150.68,0.063]
[1745514612411,106.2401805,150.71,150.68,0.063]
[1745514612901,16.90480289,150.7,150.68,0.063]
[1745514613107,16.90480289,150.69,150.68,0.063]
[1745514615009,23.54094331,150.69,150.68,0.063]
[1745514615494,6.63614042,150.69,150.68,0.063]
[1745514615696,23.54064465,150.7,150.68,0.063]
[1745514616105,106.24013294,150.71,150.68,0.063]
[1745514616525,16.90480289,150.7,150.68,0.063]
[1745514616823,99.60480289,150.7,150.68,0.063]
[1745514617421,82.7,150.7,150.68,0.063]
[1745514617923,99.60480289,150.7,150.68,0.063]
[1745514618425,106.24052298,150.7,150.68,0.063]
[1745514618795,99.60480289,150.69,150.68,0.063]